Workbook

Sheet Serviceability
C3: Serviceability Calculator (Residential)
D4: RedZed Lending Solutions Pty Ltd (ACL 311128)
D6: Information can be entered in the clear boxes, the grey boxes contain RedZed calculations.
D8: Application name - mandatory
D10: Income Table | G10: Gross Annual | L10: Net Monthly
D12: Personal Income | F12: Select Household
D13: Applicant / Guarantor 1 | E13: PAYG/Self Employed - Alt Doc Declaration/Self Employed - Full Doc | F13: Household 1 | G13: 230000 | L13: ='Tax Calc'!I5 -> 12980.20417
D14: Applicant / Guarantor 2 | E14: PAYG/Self Employed - Alt Doc Declaration/Self Employed - Full Doc | F14: Household 1 | G14: 230000 | L14: ='Tax Calc'!I6 -> 12980.20417
D15: Applicant / Guarantor 3 | E15: PAYG/Self Employed - Alt Doc Declaration/Self Employed - Full Doc | L15: ='Tax Calc'!I7 -> 0
D16: Applicant / Guarantor 4 | E16: PAYG/Self Employed - Alt Doc Declaration/Self Employed - Full Doc | L16: ='Tax Calc'!I8 -> 0
F18: Select Household | G18: Enter Source of Income
D19: Applicant / Guarantor 1 | E19: Other Regular Monthly Income (eg - Centrelink payments, investments)
D20: Applicant / Guarantor 2 | E20: Other Regular Monthly Income (eg - Centrelink payments, investments)
D21: Applicant / Guarantor 3 | E21: Other Regular Monthly Income (eg - Centrelink payments, investments)
D22: Applicant / Guarantor 4 | E22: Other Regular Monthly Income (eg - Centrelink payments, investments)
D24: Rental Income | E24: Residential Lease | G24: 156000 | L24: =G24*0.85/12 -> 11050
D25: Rental Income | E25: Short Term Rental (annualised last 6 months average) | G25: 450000 | L25: =G25*0.8/12 -> 30000
D26: Rental Income | E26: Commercial – If current lease has > 12 months remaining | L26: =G26*0.9/12 -> 0
D27: Rental Income | E27: Commercial – If current lease has < 12 months remaining | L27: =G27*0.8/12 -> 0
D29: Company Income (only to be used if the company is the loan applicant)
D30: *If a guarantor's income is also required to help with serviceability,
D31: all company and guarantor debts, and living expenses need to be included
D32: Company Net Profit Before Tax - Full Doc or Alt Doc Self Certified | L32: =(G32-(G32*Table_Company_Tax_Rate))/12 -> 0
D33: =IF(G32 <> 0, "Only NPBT from the borrowing Company entity can be entered in this field. Other related company NPBT needs to be allocated to the director(s)/guarantor(s)", 0) -> 0
D34: Total Monthly Net Income | L34: =SUM(L13,L14,L15,L16,L19,L20,L21,L22,L24,L25,L26,L27,L32) -> 67010.40833
D37: Monthly Living Expenses
D39: Applicants(s) declared expenses - mandatory
D40: Ongoing (combined) standard monthly living expenses declared by applicant(s) | G40: 7600
D42: RedZed Living Allowance | F42: Select Household
D43: Number of adults - household 1 | F43: Household 1 | G43: 2 | H43: =Tables!E84 -> 
D44: Number of dependant children - household 1 | F44: Household 1 | G44: 3
D45: Number of adults - household 2 | H45: =Tables!E85 -> 
D46: Number of dependant children - household 2
D48: Total Monthly Living Expenses used in assessment | L48: =MAX(SUM(L43:L46),G40) -> 7600
D51: Available Income | L51: =Tables!B313 -> 59410.40833
D53: Commitments | L53: Monthly
D55: RedZed Loan Applied For
G56: Loan Amount | H56: Years | I56: Interest Only Term | J56: Interest Rate
E57: Loan 1 | G57: 3150000 | H57: 30 | I57: 5 | J57: 0.0864 | L57: =Tables!B319 -> 25662.52627
E58: Loan 2 | L58: =Tables!B320 -> 0
E59: Loan 3 | L59: =Tables!B321 -> 0
D60: Note: An interest rate buffer is automatically applied by the calculator. You do not need to apply a separate buffer.
G61: Limit | I61: Financier
D62: Existing Loans | E62: Loan 1 - Existing Secured | L62: 21755
E63: Loan 2 - Existing Secured
E64: Loan 3 - Existing Unsecured
E65: Loan 4 - Existing Unsecured
G67: Total Credit Limits
D68: Credit Cards | I68: (@3.82%) | L68: =G68*3.82% -> 0
D70: Maintenance / On Going Rent
D72: Other Fixed Monthly Repayments
D74: Total Monthly Commitments | L74: =SUM(L57:L72) -> 47417.52627
I76: Pass | L76: (DSR)
D77: This Serviceability Calculator is intended as a guide only and no loan approval can be assumed on the basis of the results of this calculator. All applications remain subject to the normal credit and approval criteria of RedZed Lending Solutions Pty Ltd. | I77: Pass | L77: =IFERROR('Serviceability Calc'!C22,0) -> 1.06
I79: DTI must also be met for Regulated Loans
I80: For Company Borrowers DSR must be >1.10
I81: For IO Inv loans > 75% DSR must be >1.10
D82: Debt to Income Ratio - minimum requirements - Regulated Loans Only | L82: DTI
D83: Income Type | E83: DTI >6.0x - 7.0x | F83: DTI >7.0x-<8.0x | G83: DTI >8.0x | L83: =IFERROR((SUM(G57:G59)+SUM(G62:G65)+G68)/(SUM(G13:G16)+SUM(L19:L22)*12+SUM(G24:G25)),"") -> 2.954971857
D84: Self Employed | E84: DSR >1.10 (>=1.06 with rental income) | F84: DSR >1.10 | G84: Contact your BDM
D85: Self Employed + PAYG (PAYG<25% of total income) | E85: DSR >1.10 (>=1.06 with rental income) | F85: Contact your BDM | G85: Contact your BDM
D86: PAYG Only (or PAYG >25% of total income) | E86: Max DTI 6.5x DSR >1.10 (DSR >=1.06 with rental income) | F86: Contact your BDM | G86: Contact your BDM
D89: I, the Introducer, confirm that reasonable enquiries about the applicant(s) current and ongoing financial situation have been undertaken and are reflected in the figures entered into this calculation. The applicants(s) have been given sufficient time to consider the declared monthly living expenses amount which has been derived following due consideration.
M94: ='Version Control'!I1 -> v10.29 240820

Sheet HEM (hidden)
A1: Income Range ($) | B1: Single Adult | C1: Single Adult +1 | D1: Single Adult +2 | E1: Single Adult +3 | F1: Single Adult +4 | G1: Single Adult +5 | H1: Single Adult +6 | I1: Couple | J1: Couple +1 | K1: Couple +2 | L1: Couple +3 | M1: Couple +4 | N1: Couple +5 | O1: Couple +6
A2: 0 - 25,000 | B2: 1280.466535 | C2: 1815.36431 | D2: 2293.638706 | E2: 2845.133044 | F2: 3288.514531 | G2: 4023.665244 | H2: 4777.243775 | I2: 2529.123527 | J2: 3005.887048 | K2: 3290.6731 | L2: 3661.057031 | M2: 4292.856553 | N2: 4649.411315 | O2: 5005.966076
A3: 25,001 - 38,000 | B3: 1362.032326 | C3: 1815.36431 | D3: 2293.638706 | E3: 2845.133044 | F3: 3288.514531 | G3: 4023.665244 | H3: 4777.243775 | I3: 2529.123527 | J3: 3005.887048 | K3: 3290.6731 | L3: 3661.057031 | M3: 4292.856553 | N3: 4649.411315 | O3: 5005.966076
A4: 38,001 - 51,000 | B4: 1434.172124 | C4: 1888.329139 | D4: 2366.731092 | E4: 2845.133044 | F4: 3288.514531 | G4: 4023.665244 | H4: 4777.243775 | I4: 2602.094995 | J4: 3005.887048 | K4: 3290.6731 | L4: 3661.057031 | M4: 4292.856553 | N4: 4649.411315 | O4: 5005.966076
A5: 51,001 - 64,000 | B5: 1534.74869 | C5: 1990.056145 | D5: 2468.635552 | E5: 2947.214959 | F5: 3392.179325 | G5: 4023.665244 | H5: 4777.243775 | I5: 2703.831098 | J5: 3108.604353 | K5: 3392.478688 | L5: 3661.057031 | M5: 4292.856553 | N5: 4649.411315 | O5: 5005.966076
A6: 64,001 - 76,000 | B6: 1695.699368 | C6: 2152.847702 | D6: 2631.711342 | E6: 3110.574981 | F6: 3558.072069 | G6: 4023.665244 | H6: 4777.243775 | I6: 2866.637507 | J6: 3272.980661 | K6: 3555.395877 | L6: 3823.463342 | M6: 4292.856553 | N6: 4649.411315 | O6: 5005.966076
A7: 76,001 - 101,000 | B7: 1971.004086 | C7: 2431.301262 | D7: 2910.651281 | E7: 3390.001299 | F7: 3841.830545 | G7: 4309.53716 | H7: 4777.243775 | I7: 3145.116524 | J7: 3554.144967 | K7: 3834.064495 | L7: 4101.25771 | M7: 4574.738067 | N7: 4932.143452 | O7: 5289.548838
A8: 101,001 - 126,000 | B8: 2328.360284 | C8: 2792.744778 | D8: 3272.725714 | E8: 3752.70665 | F8: 4210.159393 | G8: 4680.60917 | H8: 5151.058948 | I8: 3506.592769 | J8: 3919.106922 | K8: 4195.787378 | L8: 4461.845356 | M8: 4940.631418 | N8: 5299.14108 | O8: 5657.650743
A9: 126,001 - 151,000 | B9: 2626.664916 | C9: 3094.461358 | D9: 3574.969009 | E9: 4055.476659 | F9: 4517.623675 | G9: 4990.363365 | H9: 5463.103054 | I9: 3808.336962 | J9: 4223.760669 | K9: 4497.737026 | L9: 4762.847629 | M9: 5246.062243 | N9: 5605.493563 | O9: 5964.924883
A10: 151,001 - 176,000 | B10: 2981.810311 | C10: 3453.668785 | D10: 3934.803448 | E10: 4415.938112 | F10: 4883.673835 | G10: 5359.139716 | H10: 5834.605597 | I10: 4167.576753 | J10: 4586.464928 | K10: 4857.221611 | L10: 5121.20464 | M10: 5609.692174 | N10: 5970.221029 | O10: 6330.749884
A11: 176,001 - 202,000 | B11: 3175.700462 | C11: 3649.776586 | D11: 4131.253812 | E11: 4612.731039 | F11: 5083.517784 | G11: 5560.472115 | H11: 6037.426445 | I11: 4363.702558 | J11: 4784.48189 | K11: 5053.48098 | L11: 5316.848319 | M11: 5808.214287 | N11: 6169.342219 | O11: 6530.470151
A12: 202,001 - 252,000 | B12: 3416.963099 | C12: 3893.798623 | D12: 4375.702151 | E12: 4857.605679 | F12: 5332.188757 | G12: 5810.995171 | H12: 6289.801586 | I12: 4607.74696 | J12: 5030.879446 | K12: 5297.691839 | L12: 5560.292479 | M12: 6055.240425 | N12: 6417.113792 | O12: 6778.987158
A13: 252,001 - 315,000 | B13: 3897.920743 | C13: 4380.257457 | D13: 4863.010178 | E13: 5345.7629 | F13: 5827.914722 | G13: 6310.413217 | H13: 6792.911711 | I13: 5094.249817 | J13: 5522.073967 | K13: 5784.526209 | L13: 6045.599713 | M13: 6547.688455 | N13: 6911.048115 | O13: 7274.407774
A14: 315,000 - 378,000 | B14: 4599.825158 | C14: 5090.189856 | D14: 5574.182114 | E14: 6058.174372 | F14: 6551.371266 | G14: 7039.257793 | H14: 7527.14432 | I14: 5804.246974 | J14: 6238.917131 | K14: 6495.007013 | L14: 6753.851522 | M14: 7266.360342 | N14: 7631.888684 | O14: 7997.417026
A15: 378,001 - 630,000 | B15: 4780.212242 | C15: 5272.640146 | D15: 5756.950961 | E15: 6241.261777 | F15: 6737.297276 | G15: 7226.568534 | H15: 7715.839793 | I15: 5986.713866 | J15: 6423.143873 | K15: 6677.598242 | L15: 6935.869866 | M15: 7451.057237 | N15: 7817.143079 | O15: 8183.228922
A19: Income Range lookup | B19: Row Offset Value | D19: Dependents/Household Number | F19: 1 | G19: 2 | H19: 3 | I19: 4 | J19: 5 | K19: 6 | L19: 7
A20: 25001 | B20: 1 | D20: 0 | F20: 0 | G20: 7 | H20: 13 | I20: 13 | J20: 13 | K20: 13 | L20: 13
A21: 38001 | B21: 2 | D21: 1 | F21: 1 | G21: 8 | H21: 13 | I21: 13 | J21: 13 | K21: 13 | L21: 13
A22: 51001 | B22: 3 | D22: 2 | F22: 2 | G22: 9 | H22: 13 | I22: 13 | J22: 13 | K22: 13 | L22: 13
A23: 64001 | B23: 4 | D23: 3 | F23: 3 | G23: 10 | H23: 13 | I23: 13 | J23: 13 | K23: 13 | L23: 13
A24: 76001 | B24: 5 | D24: 4 | F24: 4 | G24: 11 | H24: 13 | I24: 13 | J24: 13 | K24: 13 | L24: 13
A25: 101001 | B25: 6 | D25: 5 | F25: 5 | G25: 12 | H25: 13 | I25: 13 | J25: 13 | K25: 13 | L25: 13
A26: 126001 | B26: 7 | D26: 6 | F26: 6 | G26: 13 | H26: 13 | I26: 13 | J26: 13 | K26: 13 | L26: 13
A27: 151001 | B27: 8 | D27: 7 | F27: 13 | G27: 13 | H27: 13 | I27: 13 | J27: 13 | K27: 13 | L27: 13
A28: 176001 | B28: 9 | D28: 8 | F28: 13 | G28: 13 | H28: 13 | I28: 13 | J28: 13 | K28: 13 | L28: 13
A29: 202001 | B29: 10 | D29: 9 | F29: 13 | G29: 13 | H29: 13 | I29: 13 | J29: 13 | K29: 13 | L29: 13
A30: 252001 | B30: 11 | D30: 10 | F30: 13 | G30: 13 | H30: 13 | I30: 13 | J30: 13 | K30: 13 | L30: 13
A31: 315001 | B31: 12 | D31: 11 | F31: 13 | G31: 13 | H31: 13 | I31: 13 | J31: 13 | K31: 13 | L31: 13
A32: 378001 | B32: 13 | D32: 12 | F32: 13 | G32: 13 | H32: 13 | I32: 13 | J32: 13 | K32: 13 | L32: 13
D39: Household 1 | H39: Household 2
D40: Gross Income | F40: =IF(EXACT(Serviceability!F13,D39),Serviceability!G13,0)+IF(EXACT(Serviceability!F14, D39),Serviceability!G14,0)+IF(EXACT(Serviceability!F15, D39),Serviceability!G15,0)+IF(EXACT(Serviceability!F16, D39),Serviceability!G16,0)+IF(EXACT(Serviceability!F19, D39),Serviceability!L19*12,0)+IF(EXACT(Serviceability!F20, D39),Serviceability!L20*12,0)+IF(EXACT(Serviceability!F21, D39),Serviceability!L21*12,0)+IF(EXACT(Serviceability!F22, D39),Serviceability!L22*12,0) -> 460000 | H40: Gross Income | J40: =IF(EXACT(Serviceability!F13, H39),Serviceability!G13,0)+IF(EXACT(Serviceability!F14,H39),Serviceability!G14,0)+IF(EXACT(Serviceability!F15,H39),Serviceability!G15,0)+IF(EXACT(Serviceability!F16,H39),Serviceability!G16,0)+IF(EXACT(Serviceability!F19, H39),Serviceability!L19*12,0)+IF(EXACT(Serviceability!F20, H39),Serviceability!L20*12,0)+IF(EXACT(Serviceability!F21, H39),Serviceability!L21*12,0)+IF(EXACT(Serviceability!F22, H39),Serviceability!L22*12,0) -> 0
D41: Single/Couple | F41: =+Serviceability!$G$43 -> 2 | H41: Single/Couple | J41: =Serviceability!G45 -> 0
D42: Dependents | F42: =+Serviceability!$G$44 -> 3 | H42: Dependents | J42: =Serviceability!G46 -> 0
D43: HEM Row Offset Value | F43: =IFERROR(VLOOKUP(F40,HEM!$A$20:$B$32,2,TRUE),0) -> 13 | H43: HEM Row Offset Value | J43: =IFERROR(VLOOKUP(J40,HEM!$A$20:$B$32,2,TRUE),0) -> 0
D44: HEM Column Offset Value | F44: =OFFSET($E$20,F42,F41) -> 10 | H44: HEM Column Offset Value | J44: =OFFSET($E$20,J42,J41) -> 0
D45: HEM Starting Value | F45: =OFFSET(B2,0,0) -> 1280.466535 | H45: HEM Starting Value | J45: =OFFSET(B2,0,0) -> 1280.466535
D46: HEM Min Living Expense | F46: =IF(F40=0, 0, OFFSET($B$2,F43,F44)) -> 6935.869866 | H46: HEM Min Living Expense | J46: =IF(J40=0,0,OFFSET($B$2,J43,J44)) -> 0

Sheet Tables (hidden)
A2: Tax
G3: Flood Levy
A4: Wages Over | B4: Not to Exceed | C4: Tax Rate | G4: Taxable income | H4: Flood levy on this income
A5: 0 | B5: 18200 | C5: 0 | G5: $0 to $50,000 | H5: Nil | I5: 0 | J5: 50000 | K5: 0
A6: =B5+1 -> 18201 | B6: 45000 | C6: 0.16 | D6: =D5+C5*(B5-A5) -> 0 | G6: $50,001 to $100,000 | H6: Half a cent for each $1 over $50,000 | I6: 50001 | J6: 100000 | K6: 0 | L6: =(J6-J5)*K6 -> 0
A7: =B6+1 -> 45001 | B7: 135000 | C7: 0.3 | D7: =ROUNDUP(D6+C6*(B6-A6),0) -> 4288 | G7: Over $100,000 | H7: $250 plus 1c for each $1 over $100,000 | I7: =J6+1 -> 100001 | K7: 0
A8: =B7+1 -> 135001 | B8: 190000 | C8: 0.37 | D8: =ROUNDUP(D7+C7*(B7-A7),0) -> 31288
A9: =B8+1 -> 190001 | C9: 0.45 | D9: =ROUNDUP(D8+C8*(B8-A8),0) -> 51638
A12: Medicare Levy
G13: Taxable income | H13: Tax on this income
A14: 0 | B14: 16284 | C14: 0 | E14: not currently used | G14: 0 - $18,200 | H14: Nil
A15: 16284 | B15: 17604 | C15: 0.2 | G15: $18,201 - $37,000 | H15: 19c for each $1 over $18,200
A16: 17604+ | C16: 0.02 | G16: $37,001 - $90,000 | H16: $3,572 plus 32.5c for each $1 over $37,000
G17: $90,001 - $180,000 | H17: $17,547 plus 37c for each $1 over $87,000
G18: $180,001 and over | H18: $54,547 plus 45c for each $1 over $180,000
A20: Company Tax
A22: Rate | B22: 0.25
A28: APR Buffer | B28: 0.02
A29: Minimum Rate | B29: 0.07
A31: RedZed Loan Applied For: Repayment With Buffer | C31: Buffered % | D31: Minimum % | E31: Rate % | F31: Buffer % | G31: Buffered % | H31: Total Term | I31: Interest Only Term | J31: Net Term | K31: Amount
A32: Buffered Loan 1 | B32: =IF(Serviceability!H57=0,0,-PMT((D32)/12,J32*12,Serviceability!G57)) -> 30057.2437 | C32: =G32 -> 0.1064 | D32: =IF(C32>=$B$29,C32,$B$29) -> 0.1064 | E32: =Serviceability!J57 -> 0.0864 | F32: =$B$28 -> 0.02 | G32: =E32+F32 -> 0.1064 | H32: =Serviceability!H57 -> 30 | I32: =Serviceability!I57 -> 5 | J32: =H32-I32 -> 25 | K32: =Serviceability!G57 -> 3150000
A33: Buffered Loan 2 | B33: =IF(Serviceability!H58=0,0,-PMT((D33)/12,J33*12,Serviceability!G58)) -> 0 | C33: =G33 -> 0.02 | D33: =IF(C33>=$B$29,C33,$B$29) -> 0.07 | E33: =Serviceability!J58 -> 0 | F33: =$B$28 -> 0.02 | G33: =E33+F33 -> 0.02 | H33: =Serviceability!H58 -> 0 | I33: =Serviceability!I58 -> 0 | J33: =H33-I33 -> 0
A34: Buffered Loan 3 | B34: =IF(Serviceability!H59=0,0,-PMT((D34)/12,J34*12,Serviceability!G59)) -> 0 | C34: 0.02 | D34: 0.07 | E34: =Serviceability!J59 -> 0 | F34: 0.02 | G34: 0.02 | H34: =Serviceability!H59 -> 0 | I34: =Serviceability!I59 -> 0 | J34: 0 | K34: =Serviceability!G59 -> 0
A37: Existing Loan: Repayment With Buffer
A38: Buffered Loan 1 | B38: 0.2 | C38: =Serviceability!L62*(1+Tables!B38) -> 26106 | G38: =Serviceability!L62 -> 21755 | H38: =Serviceability!E62 -> Loan 1 - Existing Secured
A39: Buffered Loan 2 | B39: 0.2 | C39: =Serviceability!L63*(1+Tables!B39) -> 0 | G39: =Serviceability!L63 -> 0 | H39: =Serviceability!E63 -> Loan 2 - Existing Secured
A42: Additional Fees for Serviceability
A43: Fees - Loan 1 | B43: 15 | C43: =IF(Serviceability!L57=0,0,15) -> 15 | D43: Monthly Account Keeping Fee Resi
A44: Fees - Loan 2 | B44: 15 | C44: =IF(Serviceability!L58=0,0,15) -> 0 | D44: Monthly Account Keeping Fee Resi
A45: Fees - Loan 3 | B45: 15 | C45: =IF(Serviceability!L59=0,0,15) -> 0 | D45: Monthly Account Keeping Fee Resi
A49: Column1 | B49: Single Adult | C49: Single Adult + 1 Dependant | D49: Single Adult + 2 Dependants | E49: Single Adult + 3 Dependants | F49: Single Adult + 4 Dependants | G49: Single Adult + 5 Dependants | H49: Single Adult + 6 Dependants | I49: Couple | J49: Couple + 1 Dependant | K49: Couple + 2 Dependants | L49: Couple + 3 Dependants | M49: Couple + 4 Dependants | N49: Couple + 5 Dependants | O49: Couple + 6 Dependants
A50: Income Range ($) | B50: Proposed Benchmark | C50: Proposed Benchmark | D50: Proposed Benchmark | E50: Proposed Benchmark | F50: Proposed Benchmark | G50: Proposed Benchmark | H50: Proposed Benchmark | I50: Proposed Benchmark | J50: Proposed Benchmark | K50: Proposed Benchmark | L50: Proposed Benchmark | M50: Proposed Benchmark | N50: Proposed Benchmark | O50: Proposed Benchmark
A51: 0 - 25,000 | B51: 1278.225554 | C51: 1836.584816 | D51: 2282.834585 | E51: 2795.771465 | F51: 3297.960782 | G51: 4023.689363 | H51: 4756.96367 | I51: 2511.564375 | J51: 2976.987464 | K51: 3277.526381 | L51: 3670.260393 | M51: 4275.679142 | N51: 4636.787207 | O51: 4997.895272
A52: 25,001 - 38,000 | B52: 1352.363626 | C52: 1836.584816 | D52: 2282.834585 | E52: 2795.771465 | F52: 3297.960782 | G52: 4023.689363 | H52: 4756.96367 | I52: 2511.564375 | J52: 2976.987464 | K52: 3277.526381 | L52: 3670.260393 | M52: 4275.679142 | N52: 4636.787207 | O52: 4997.895272
A53: 38,001 - 50,000 | B53: 1419.080997 | C53: 1903.953316 | D53: 2349.86239 | E53: 2795.771465 | F53: 3297.960782 | G53: 4023.689363 | H53: 4756.96367 | I53: 2578.690828 | J53: 2976.987464 | K53: 3277.526381 | L53: 3670.260393 | M53: 4275.679142 | N53: 4636.787207 | O53: 4997.895272
A54: 50,001 - 63,000 | B54: 1505.867429 | C54: 1991.586675 | D54: 2437.052429 | E54: 2882.518182 | F54: 3386.127869 | G54: 4023.689363 | H54: 4756.96367 | I54: 2666.009305 | J54: 3064.553588 | K54: 3364.937869 | L54: 3670.260393 | M54: 4275.679142 | N54: 4636.787207 | O54: 4997.895272
A55: 63,001 - 76,000 | B55: 1670.098012 | C55: 2157.419998 | D55: 2602.046715 | E55: 3046.673432 | F55: 3552.971093 | G55: 4023.689363 | H55: 4756.96367 | I55: 2831.246881 | J55: 3230.259724 | K55: 3530.351807 | L55: 3835.523549 | M55: 4275.679142 | N55: 4636.787207 | O55: 4997.895272
A56: 76,001 - 101,000 | B56: 1926.534409 | C56: 2416.359052 | D56: 2859.675725 | E56: 3302.992398 | F56: 3813.48725 | G56: 4285.22546 | H56: 4756.96367 | I56: 3089.255359 | J56: 3488.999871 | K56: 3788.635352 | L56: 4093.572423 | M56: 4534.864511 | N56: 4896.266799 | O56: 5257.669087
A57: 101,001 - 126,000 | B57: 2274.13614 | C57: 2767.353101 | D57: 3208.893878 | E57: 3650.434655 | F57: 4166.618809 | G57: 4639.739476 | H57: 5112.860143 | I57: 3438.988265 | J57: 3839.724426 | K57: 4138.741441 | L57: 4443.359652 | M57: 4886.192546 | N57: 5247.993617 | O57: 5609.794687
A58: 126,001 - 151,000 | B58: 2590.403582 | C58: 3086.707062 | D58: 3526.63214 | E58: 3966.557218 | F58: 4487.917767 | G58: 4962.296313 | H58: 5436.674859 | I58: 3757.194731 | J58: 4158.833222 | K58: 4457.287303 | L58: 4761.615609 | M58: 5205.85038 | N58: 5568.014292 | O58: 5930.178204
A59: 151,001 - 176,000 | B59: 2973.810284 | C59: 3473.855349 | D59: 3911.821817 | E59: 4349.788286 | F59: 4877.423838 | G59: 5353.327227 | H59: 5829.230615 | I59: 4142.951924 | J59: 4545.684622 | K59: 4843.45586 | L59: 5147.432979 | M59: 5593.367503 | N59: 5955.971397 | O59: 6318.575292
A60: 176,001 - 202,000 | B60: 3141.748368 | C60: 3643.432376 | D60: 4080.540988 | E60: 4517.649601 | F60: 5048.033784 | G60: 5524.605138 | H60: 6001.176493 | I60: 4311.919954 | J60: 4715.131467 | K60: 5012.603866 | L60: 5316.427332 | M60: 5763.105635 | N60: 6125.902056 | O60: 6488.698476
A61: 202,001 - 252,000 | B61: 3352.058391 | C61: 3855.795021 | D61: 4291.829232 | E61: 4727.863444 | F61: 5261.690037 | G61: 5739.097948 | H61: 6216.50586 | I61: 4523.519219 | J61: 4927.33084 | K61: 5224.429144 | L61: 5528.059481 | M61: 5975.670335 | N61: 6338.708114 | O61: 6701.745893
A62: 252,001 - 315,000 | B62: 3912.584598 | C62: 4421.791276 | D62: 4854.961958 | E62: 5288.132639 | F62: 5831.133094 | G62: 6310.770218 | H62: 6790.407342 | I62: 5087.48175 | J62: 5492.892586 | K62: 5788.993191 | L62: 6092.109869 | M62: 6542.205211 | N62: 6905.886076 | O62: 7269.566941
A63: 315,001 - 378,000 | B63: 4406.616037 | C63: 4920.644071 | D63: 5351.29092 | E63: 5781.937768 | F63: 6333.024107 | G63: 6814.626125 | H63: 7296.228142 | I63: 5584.542402 | J63: 5991.36274 | K63: 6286.583678 | L63: 6589.247956 | M63: 7041.53284 | N63: 7405.780449 | O63: 7770.028058
A64: 378,001 - 630,000 | B64: 4694.922022 | C64: 5211.763695 | D64: 5640.937689 | E64: 6070.111683 | F64: 6625.916769 | G64: 7108.665456 | H64: 7591.414142 | I64: 5874.615658 | J64: 6282.258551 | K64: 6576.966647 | L64: 6879.366564 | M64: 7332.929465 | N64: 7697.507917 | O64: 8062.086369
A70: Household 1
A71: Household 2 | B71: Monthly Income | F71: Other Income | H71: Company
B73: Household 1 | C73: Household 2 | F73: Household 1 | G73: Household 2 | I73: Always Household 1
A74: Applicant / Guarantor 1 | B74: =IF(EXACT(Serviceability!F13, "Household 1"),Serviceability!G13,0) -> 230000 | C74: =IF(EXACT(Serviceability!F13, "Household 2"),Serviceability!G13,0) -> 0 | E74: Applicant / Guarantor 1 | F74: =IF(EXACT(Serviceability!F19, "Household 1"),Serviceability!L19,0) -> 0 | G74: =IF(EXACT(Serviceability!F19, "Household 2"),Serviceability!L19,0) -> 0 | H74: Applicant / Guarantor 1 | I74: =Serviceability!G32 -> 0
A75: Applicant / Guarantor 2 | B75: =IF(EXACT(Serviceability!F14, "Household 1"),Serviceability!G14,0) -> 230000 | C75: =IF(EXACT(Serviceability!F14, "Household 2"),Serviceability!G14,0) -> 0 | E75: Applicant / Guarantor 2 | F75: =IF(EXACT(Serviceability!F20, "Household 1"),Serviceability!L20,0) -> 0 | G75: =IF(EXACT(Serviceability!F20, "Household 2"),Serviceability!L20,0) -> 0
A76: Applicant / Guarantor 3 | B76: =IF(EXACT(Serviceability!F15, "Household 1"),Serviceability!G15,0) -> 0 | C76: =IF(EXACT(Serviceability!F15, "Household 2"),Serviceability!G15,0) -> 0 | E76: Applicant / Guarantor 3 | F76: =IF(EXACT(Serviceability!F21, "Household 1"),Serviceability!L21,0) -> 0 | G76: =IF(EXACT(Serviceability!F21, "Household 2"),Serviceability!L21,0) -> 0
A77: Applicant / Guarantor 4 | B77: =IF(EXACT(Serviceability!F16, "Household 1"),Serviceability!G16,0) -> 0 | C77: =IF(EXACT(Serviceability!F16, "Household 2"),Serviceability!G16,0) -> 0 | E77: Applicant / Guarantor 4 | F77: =IF(EXACT(Serviceability!F22, "Household 1"),Serviceability!L22,0) -> 0 | G77: =IF(EXACT(Serviceability!F22, "Household 2"),Serviceability!L22,0) -> 0
A78: Applicant Totals | B78: =SUM(B74:B77,F78,I74) -> 460000 | C78: =SUM(C74:C77,G78) -> 0 | E78: Applicant Totals | F78: =SUM(F74:F77)*12 -> 0 | G78: =SUM(G74:G77)*12 -> 0
A80: Adults - household | C80: =IF(C78<=59999,"test",IF(B3>93,"A",IF(B3>89,"A-",IF(B3>87,"B+",IF(B3>83,"B",IF(B3>79,"B-", IF(B3>77,"C+",IF(B3>73,"C",IF(B3>69,"C-",IF(B3>57,"D+",IF(B3>53,"D",IF(B3>49,"D-","")))))))))))) -> test
A81: Adults - household - new
A82: Dependant children - household
A84: Adult | B84: =Serviceability!G43 -> 2 | C84: =Serviceability!G45 -> 0 | E84: =IF(Serviceability!G43>2, "Please call 1300 722 462 for assistance with calculation "," ") ->  | N84: offset amount
A85: Dependent | B85: =Serviceability!G44 -> 3 | C85: =Serviceability!G46 -> 0 | E85: =IF(Serviceability!G45>2, "Please call 1300 722 462 for assistance with calculation "," ") -> 
B86: ="Adult-" & B84 & ",Dependents-" & B85 -> Adult-2,Dependents-3 | C86: ="Adult-" & C84 & ",Dependents-" & C85 -> Adult-0,Dependents-0
A88: LookupKey | B88: Household | C88: Income Range | D88: Living Expense
A89: =B89 & ":" & C89 -> Adult-1,Dependents-0:0 - 25,000 | B89: Adult-1,Dependents-0 | C89: 0 - 25,000 | D89: 1278.225554
A90: =B90 & ":" & C90 -> Adult-1,Dependents-0:25,001 - 38,000 | B90: Adult-1,Dependents-0 | C90: 25,001 - 38,000 | D90: 1352.363626
A91: Adult-1,Dependents-0:38,001 - 50,000 | B91: Adult-1,Dependents-0 | C91: 38,001 - 50,000 | D91: 1419.080997
A92: Adult-1,Dependents-0:50,001 - 63,000 | B92: Adult-1,Dependents-0 | C92: 50,001 - 63,000 | D92: 1505.867429
A93: Adult-1,Dependents-0:63,001 - 76,000 | B93: Adult-1,Dependents-0 | C93: 63,001 - 76,000 | D93: 1670.098012
A94: Adult-1,Dependents-0:76,001 - 101,000 | B94: Adult-1,Dependents-0 | C94: 76,001 - 101,000 | D94: 1926.534409
A95: Adult-1,Dependents-0:101,001 - 126,000 | B95: Adult-1,Dependents-0 | C95: 101,001 - 126,000 | D95: 2274.13614
A96: Adult-1,Dependents-0:126,001 - 151,000 | B96: Adult-1,Dependents-0 | C96: 126,001 - 151,000 | D96: 2590.403582
A97: Adult-1,Dependents-0:151,001 - 176,000 | B97: Adult-1,Dependents-0 | C97: 151,001 - 176,000 | D97: 2973.810284
A98: Adult-1,Dependents-0:176,001 - 202,000 | B98: Adult-1,Dependents-0 | C98: 176,001 - 202,000 | D98: 3141.748368
A99: Adult-1,Dependents-0:202,001 - 252,000 | B99: Adult-1,Dependents-0 | C99: 202,001 - 252,000 | D99: 3352.058391
A100: Adult-1,Dependents-0:252,001 - 315,000 | B100: Adult-1,Dependents-0 | C100: 252,001 - 315,000 | D100: 3912.584598
A101: Adult-1,Dependents-0:315,001 - 378,000 | B101: Adult-1,Dependents-0 | C101: 315,001 - 378,000 | D101: 4406.616037
A102: Adult-1,Dependents-0:378,001 - 630,000 | B102: Adult-1,Dependents-0 | C102: 378,001 - 630,000 | D102: 4694.922022
A104: Adult-1,Dependents-1:0 - 25,000 | B104: Adult-1,Dependents-1 | C104: 0 - 25,000 | D104: 1836.584816
A105: Adult-1,Dependents-1:25,001 - 38,000 | B105: Adult-1,Dependents-1 | C105: 25,001 - 38,000 | D105: 1836.584816
A106: Adult-1,Dependents-1:38,001 - 50,000 | B106: Adult-1,Dependents-1 | C106: 38,001 - 50,000 | D106: 1903.953316
A107: Adult-1,Dependents-1:50,001 - 63,000 | B107: Adult-1,Dependents-1 | C107: 50,001 - 63,000 | D107: 1991.586675
A108: Adult-1,Dependents-1:63,001 - 76,000 | B108: Adult-1,Dependents-1 | C108: 63,001 - 76,000 | D108: 2157.419998
A109: Adult-1,Dependents-1:76,001 - 101,000 | B109: Adult-1,Dependents-1 | C109: 76,001 - 101,000 | D109: 2416.359052
A110: Adult-1,Dependents-1:101,001 - 126,000 | B110: Adult-1,Dependents-1 | C110: 101,001 - 126,000 | D110: 2767.353101
A111: Adult-1,Dependents-1:126,001 - 151,000 | B111: Adult-1,Dependents-1 | C111: 126,001 - 151,000 | D111: 3086.707062
A112: Adult-1,Dependents-1:151,001 - 176,000 | B112: Adult-1,Dependents-1 | C112: 151,001 - 176,000 | D112: 3473.855349
A113: Adult-1,Dependents-1:176,001 - 202,000 | B113: Adult-1,Dependents-1 | C113: 176,001 - 202,000 | D113: 3643.432376
A114: Adult-1,Dependents-1:202,001 - 252,000 | B114: Adult-1,Dependents-1 | C114: 202,001 - 252,000 | D114: 3855.795021
A115: Adult-1,Dependents-1:252,001 - 315,000 | B115: Adult-1,Dependents-1 | C115: 252,001 - 315,000 | D115: 4421.791276
A116: Adult-1,Dependents-1:315,001 - 378,000 | B116: Adult-1,Dependents-1 | C116: 315,001 - 378,000 | D116: 4920.644071
A117: Adult-1,Dependents-1:378,001 - 630,000 | B117: Adult-1,Dependents-1 | C117: 378,001 - 630,000 | D117: 5211.763695
A119: =B119 & ":" & C119 -> Adult-1,Dependents-2:0 - 25,000 | B119: Adult-1,Dependents-2 | C119: 0 - 25,000 | D119: 2282.834585
A120: Adult-1,Dependents-2:25,001 - 38,000 | B120: Adult-1,Dependents-2 | C120: 25,001 - 38,000 | D120: 2282.834585
A121: Adult-1,Dependents-2:38,001 - 50,000 | B121: Adult-1,Dependents-2 | C121: 38,001 - 50,000 | D121: 2349.86239
A122: Adult-1,Dependents-2:50,001 - 63,000 | B122: Adult-1,Dependents-2 | C122: 50,001 - 63,000 | D122: 2437.052429
A123: Adult-1,Dependents-2:63,001 - 76,000 | B123: Adult-1,Dependents-2 | C123: 63,001 - 76,000 | D123: 2602.046715
A124: Adult-1,Dependents-2:76,001 - 101,000 | B124: Adult-1,Dependents-2 | C124: 76,001 - 101,000 | D124: 2859.675725
A125: Adult-1,Dependents-2:101,001 - 126,000 | B125: Adult-1,Dependents-2 | C125: 101,001 - 126,000 | D125: 3208.893878
A126: Adult-1,Dependents-2:126,001 - 151,000 | B126: Adult-1,Dependents-2 | C126: 126,001 - 151,000 | D126: 3526.63214
A127: Adult-1,Dependents-2:151,001 - 176,000 | B127: Adult-1,Dependents-2 | C127: 151,001 - 176,000 | D127: 3911.821817
A128: Adult-1,Dependents-2:176,001 - 202,000 | B128: Adult-1,Dependents-2 | C128: 176,001 - 202,000 | D128: 4080.540988
A129: Adult-1,Dependents-2:202,001 - 252,000 | B129: Adult-1,Dependents-2 | C129: 202,001 - 252,000 | D129: 4291.829232
A130: Adult-1,Dependents-2:252,001 - 315,000 | B130: Adult-1,Dependents-2 | C130: 252,001 - 315,000 | D130: 4854.961958
A131: Adult-1,Dependents-2:315,001 - 378,000 | B131: Adult-1,Dependents-2 | C131: 315,001 - 378,000 | D131: 5351.29092
A132: Adult-1,Dependents-2:378,001 - 630,000 | B132: Adult-1,Dependents-2 | C132: 378,001 - 630,000 | D132: 5640.937689
A134: =B134 & ":" & C134 -> Adult-1,Dependents-3:0 - 25,000 | B134: Adult-1,Dependents-3 | C134: 0 - 25,000 | D134: 2795.771465
A135: Adult-1,Dependents-3:25,001 - 38,000 | B135: Adult-1,Dependents-3 | C135: 25,001 - 38,000 | D135: 2795.771465
A136: Adult-1,Dependents-3:38,001 - 50,000 | B136: Adult-1,Dependents-3 | C136: 38,001 - 50,000 | D136: 2795.771465
A137: Adult-1,Dependents-3:50,001 - 63,000 | B137: Adult-1,Dependents-3 | C137: 50,001 - 63,000 | D137: 2882.518182
A138: Adult-1,Dependents-3:63,001 - 76,000 | B138: Adult-1,Dependents-3 | C138: 63,001 - 76,000 | D138: 3046.673432
A139: Adult-1,Dependents-3:76,001 - 101,000 | B139: Adult-1,Dependents-3 | C139: 76,001 - 101,000 | D139: 3302.992398
A140: Adult-1,Dependents-3:101,001 - 126,000 | B140: Adult-1,Dependents-3 | C140: 101,001 - 126,000 | D140: 3650.434655
A141: Adult-1,Dependents-3:126,001 - 151,000 | B141: Adult-1,Dependents-3 | C141: 126,001 - 151,000 | D141: 3966.557218
A142: Adult-1,Dependents-3:151,001 - 176,000 | B142: Adult-1,Dependents-3 | C142: 151,001 - 176,000 | D142: 4349.788286
A143: Adult-1,Dependents-3:176,001 - 202,000 | B143: Adult-1,Dependents-3 | C143: 176,001 - 202,000 | D143: 4517.649601
A144: Adult-1,Dependents-3:202,001 - 252,000 | B144: Adult-1,Dependents-3 | C144: 202,001 - 252,000 | D144: 4727.863444
A145: Adult-1,Dependents-3:252,001 - 315,000 | B145: Adult-1,Dependents-3 | C145: 252,001 - 315,000 | D145: 5288.132639
A146: Adult-1,Dependents-3:315,001 - 378,000 | B146: Adult-1,Dependents-3 | C146: 315,001 - 378,000 | D146: 5781.937768
A147: Adult-1,Dependents-3:378,001 - 630,000 | B147: Adult-1,Dependents-3 | C147: 378,001 - 630,000 | D147: 6070.111683
A150: =B150 & ":" & C150 -> Adult-1,Dependents-4:0 - 25,000 | B150: Adult-1,Dependents-4 | C150: 0 - 25,000 | D150: 3297.960782
A151: Adult-1,Dependents-4:25,001 - 38,000 | B151: Adult-1,Dependents-4 | C151: 25,001 - 38,000 | D151: 3297.960782
A152: Adult-1,Dependents-4:38,001 - 50,000 | B152: Adult-1,Dependents-4 | C152: 38,001 - 50,000 | D152: 3297.960782
A153: Adult-1,Dependents-4:50,001 - 63,000 | B153: Adult-1,Dependents-4 | C153: 50,001 - 63,000 | D153: 3386.127869
A154: Adult-1,Dependents-4:63,001 - 76,000 | B154: Adult-1,Dependents-4 | C154: 63,001 - 76,000 | D154: 3552.971093
A155: Adult-1,Dependents-4:76,001 - 101,000 | B155: Adult-1,Dependents-4 | C155: 76,001 - 101,000 | D155: 3813.48725
A156: Adult-1,Dependents-4:101,001 - 126,000 | B156: Adult-1,Dependents-4 | C156: 101,001 - 126,000 | D156: 4166.618809
A157: Adult-1,Dependents-4:126,001 - 151,000 | B157: Adult-1,Dependents-4 | C157: 126,001 - 151,000 | D157: 4487.917767
A158: Adult-1,Dependents-4:151,001 - 176,000 | B158: Adult-1,Dependents-4 | C158: 151,001 - 176,000 | D158: 4877.423838
A159: Adult-1,Dependents-4:176,001 - 202,000 | B159: Adult-1,Dependents-4 | C159: 176,001 - 202,000 | D159: 5048.033784
A160: Adult-1,Dependents-4:202,001 - 252,000 | B160: Adult-1,Dependents-4 | C160: 202,001 - 252,000 | D160: 5261.690037
A161: Adult-1,Dependents-4:252,001 - 315,000 | B161: Adult-1,Dependents-4 | C161: 252,001 - 315,000 | D161: 5831.133094
A162: Adult-1,Dependents-4:315,001 - 378,000 | B162: Adult-1,Dependents-4 | C162: 315,001 - 378,000 | D162: 6333.024107
A163: Adult-1,Dependents-4:378,001 - 630,000 | B163: Adult-1,Dependents-4 | C163: 378,001 - 630,000 | D163: 6625.916769
A165: =B165 & ":" & C165 -> Adult-1,Dependents-5:0 - 25,000 | B165: Adult-1,Dependents-5 | C165: 0 - 25,000 | D165: 4023.689363
A166: Adult-1,Dependents-5:25,001 - 38,000 | B166: Adult-1,Dependents-5 | C166: 25,001 - 38,000 | D166: 4023.689363
A167: Adult-1,Dependents-5:38,001 - 50,000 | B167: Adult-1,Dependents-5 | C167: 38,001 - 50,000 | D167: 4023.689363
A168: Adult-1,Dependents-5:50,001 - 63,000 | B168: Adult-1,Dependents-5 | C168: 50,001 - 63,000 | D168: 4023.689363
A169: Adult-1,Dependents-5:63,001 - 76,000 | B169: Adult-1,Dependents-5 | C169: 63,001 - 76,000 | D169: 4023.689363
A170: Adult-1,Dependents-5:76,001 - 101,000 | B170: Adult-1,Dependents-5 | C170: 76,001 - 101,000 | D170: 4285.22546
A171: Adult-1,Dependents-5:101,001 - 126,000 | B171: Adult-1,Dependents-5 | C171: 101,001 - 126,000 | D171: 4639.739476
A172: Adult-1,Dependents-5:126,001 - 151,000 | B172: Adult-1,Dependents-5 | C172: 126,001 - 151,000 | D172: 4962.296313
A173: Adult-1,Dependents-5:151,001 - 176,000 | B173: Adult-1,Dependents-5 | C173: 151,001 - 176,000 | D173: 5353.327227
A174: Adult-1,Dependents-5:176,001 - 202,000 | B174: Adult-1,Dependents-5 | C174: 176,001 - 202,000 | D174: 5524.605138
A175: Adult-1,Dependents-5:202,001 - 252,000 | B175: Adult-1,Dependents-5 | C175: 202,001 - 252,000 | D175: 5739.097948
A176: Adult-1,Dependents-5:252,001 - 315,000 | B176: Adult-1,Dependents-5 | C176: 252,001 - 315,000 | D176: 6310.770218
A177: Adult-1,Dependents-5:315,001 - 378,000 | B177: Adult-1,Dependents-5 | C177: 315,001 - 378,000 | D177: 6814.626125
A178: Adult-1,Dependents-5:378,001 - 630,000 | B178: Adult-1,Dependents-5 | C178: 378,001 - 630,000 | D178: 7108.665456
A180: =B180 & ":" & C180 -> Adult-1,Dependents-6:0 - 25,000 | B180: Adult-1,Dependents-6 | C180: 0 - 25,000 | D180: 4756.96367
A181: Adult-1,Dependents-6:25,001 - 38,000 | B181: Adult-1,Dependents-6 | C181: 25,001 - 38,000 | D181: 4756.96367
A182: Adult-1,Dependents-6:38,001 - 50,000 | B182: Adult-1,Dependents-6 | C182: 38,001 - 50,000 | D182: 4756.96367
A183: Adult-1,Dependents-6:50,001 - 63,000 | B183: Adult-1,Dependents-6 | C183: 50,001 - 63,000 | D183: 4756.96367
A184: Adult-1,Dependents-6:63,001 - 76,000 | B184: Adult-1,Dependents-6 | C184: 63,001 - 76,000 | D184: 4756.96367
A185: Adult-1,Dependents-6:76,001 - 101,000 | B185: Adult-1,Dependents-6 | C185: 76,001 - 101,000 | D185: 4756.96367
A186: Adult-1,Dependents-6:101,001 - 126,000 | B186: Adult-1,Dependents-6 | C186: 101,001 - 126,000 | D186: 5112.860143
A187: Adult-1,Dependents-6:126,001 - 151,000 | B187: Adult-1,Dependents-6 | C187: 126,001 - 151,000 | D187: 5436.674859
A188: Adult-1,Dependents-6:151,001 - 176,000 | B188: Adult-1,Dependents-6 | C188: 151,001 - 176,000 | D188: 5829.230615
A189: Adult-1,Dependents-6:176,001 - 202,000 | B189: Adult-1,Dependents-6 | C189: 176,001 - 202,000 | D189: 6001.176493
A190: Adult-1,Dependents-6:202,001 - 252,000 | B190: Adult-1,Dependents-6 | C190: 202,001 - 252,000 | D190: 6216.50586
A191: Adult-1,Dependents-6:252,001 - 315,000 | B191: Adult-1,Dependents-6 | C191: 252,001 - 315,000 | D191: 6790.407342
A192: Adult-1,Dependents-6:315,001 - 378,000 | B192: Adult-1,Dependents-6 | C192: 315,001 - 378,000 | D192: 7296.228142
A193: Adult-1,Dependents-6:378,001 - 630,000 | B193: Adult-1,Dependents-6 | C193: 378,001 - 630,000 | D193: 7591.414142
A195: =B195 & ":" & C195 -> Adult-2,Dependents-0:0 - 25,000 | B195: Adult-2,Dependents-0 | C195: 0 - 25,000 | D195: 2511.564375
A196: =B196 & ":" & C196 -> Adult-2,Dependents-0:25,001 - 38,000 | B196: Adult-2,Dependents-0 | C196: 25,001 - 38,000 | D196: 2511.564375
A197: Adult-2,Dependents-0:38,001 - 50,000 | B197: Adult-2,Dependents-0 | C197: 38,001 - 50,000 | D197: 2578.690828
A198: Adult-2,Dependents-0:50,001 - 63,000 | B198: Adult-2,Dependents-0 | C198: 50,001 - 63,000 | D198: 2666.009305
A199: Adult-2,Dependents-0:63,001 - 76,000 | B199: Adult-2,Dependents-0 | C199: 63,001 - 76,000 | D199: 2831.246881
A200: Adult-2,Dependents-0:76,001 - 101,000 | B200: Adult-2,Dependents-0 | C200: 76,001 - 101,000 | D200: 3089.255359
A201: Adult-2,Dependents-0:101,001 - 126,000 | B201: Adult-2,Dependents-0 | C201: 101,001 - 126,000 | D201: 3438.988265
A202: Adult-2,Dependents-0:126,001 - 151,000 | B202: Adult-2,Dependents-0 | C202: 126,001 - 151,000 | D202: 3757.194731
A203: Adult-2,Dependents-0:151,001 - 176,000 | B203: Adult-2,Dependents-0 | C203: 151,001 - 176,000 | D203: 4142.951924
A204: Adult-2,Dependents-0:176,001 - 202,000 | B204: Adult-2,Dependents-0 | C204: 176,001 - 202,000 | D204: 4311.919954
A205: Adult-2,Dependents-0:202,001 - 252,000 | B205: Adult-2,Dependents-0 | C205: 202,001 - 252,000 | D205: 4523.519219
A206: Adult-2,Dependents-0:252,001 - 315,000 | B206: Adult-2,Dependents-0 | C206: 252,001 - 315,000 | D206: 5087.48175
A207: Adult-2,Dependents-0:315,001 - 378,000 | B207: Adult-2,Dependents-0 | C207: 315,001 - 378,000 | D207: 5584.542402
A208: Adult-2,Dependents-0:378,001 - 630,000 | B208: Adult-2,Dependents-0 | C208: 378,001 - 630,000 | D208: 5874.615658
A210: =B210 & ":" & C210 -> Adult-2,Dependents-1:0 - 25,000 | B210: Adult-2,Dependents-1 | C210: 0 - 25,000 | D210: 2976.987464
A211: Adult-2,Dependents-1:25,001 - 38,000 | B211: Adult-2,Dependents-1 | C211: 25,001 - 38,000 | D211: 2976.987464
A212: Adult-2,Dependents-1:38,001 - 50,000 | B212: Adult-2,Dependents-1 | C212: 38,001 - 50,000 | D212: 2976.987464
A213: Adult-2,Dependents-1:50,001 - 63,000 | B213: Adult-2,Dependents-1 | C213: 50,001 - 63,000 | D213: 3064.553588
A214: Adult-2,Dependents-1:63,001 - 76,000 | B214: Adult-2,Dependents-1 | C214: 63,001 - 76,000 | D214: 3230.259724
A215: Adult-2,Dependents-1:76,001 - 101,000 | B215: Adult-2,Dependents-1 | C215: 76,001 - 101,000 | D215: 3488.999871
A216: Adult-2,Dependents-1:101,001 - 126,000 | B216: Adult-2,Dependents-1 | C216: 101,001 - 126,000 | D216: 3839.724426
A217: Adult-2,Dependents-1:126,001 - 151,000 | B217: Adult-2,Dependents-1 | C217: 126,001 - 151,000 | D217: 4158.833222
A218: Adult-2,Dependents-1:151,001 - 176,000 | B218: Adult-2,Dependents-1 | C218: 151,001 - 176,000 | D218: 4545.684622
A219: Adult-2,Dependents-1:176,001 - 202,000 | B219: Adult-2,Dependents-1 | C219: 176,001 - 202,000 | D219: 4715.131467
A220: Adult-2,Dependents-1:202,001 - 252,000 | B220: Adult-2,Dependents-1 | C220: 202,001 - 252,000 | D220: 4927.33084
A221: Adult-2,Dependents-1:252,001 - 315,000 | B221: Adult-2,Dependents-1 | C221: 252,001 - 315,000 | D221: 5492.892586
A222: Adult-2,Dependents-1:315,001 - 378,000 | B222: Adult-2,Dependents-1 | C222: 315,001 - 378,000 | D222: 5991.36274
A223: Adult-2,Dependents-1:378,001 - 630,000 | B223: Adult-2,Dependents-1 | C223: 378,001 - 630,000 | D223: 6282.258551
A225: =B225 & ":" & C225 -> Adult-2,Dependents-2:0 - 25,000 | B225: Adult-2,Dependents-2 | C225: 0 - 25,000 | D225: 3277.526381
A226: Adult-2,Dependents-2:25,001 - 38,000 | B226: Adult-2,Dependents-2 | C226: 25,001 - 38,000 | D226: 3277.526381
A227: Adult-2,Dependents-2:38,001 - 50,000 | B227: Adult-2,Dependents-2 | C227: 38,001 - 50,000 | D227: 3277.526381
A228: Adult-2,Dependents-2:50,001 - 63,000 | B228: Adult-2,Dependents-2 | C228: 50,001 - 63,000 | D228: 3364.937869
A229: Adult-2,Dependents-2:63,001 - 76,000 | B229: Adult-2,Dependents-2 | C229: 63,001 - 76,000 | D229: 3530.351807
A230: Adult-2,Dependents-2:76,001 - 101,000 | B230: Adult-2,Dependents-2 | C230: 76,001 - 101,000 | D230: 3788.635352
A231: Adult-2,Dependents-2:101,001 - 126,000 | B231: Adult-2,Dependents-2 | C231: 101,001 - 126,000 | D231: 4138.741441
A232: Adult-2,Dependents-2:126,001 - 151,000 | B232: Adult-2,Dependents-2 | C232: 126,001 - 151,000 | D232: 4457.287303
A233: Adult-2,Dependents-2:151,001 - 176,000 | B233: Adult-2,Dependents-2 | C233: 151,001 - 176,000 | D233: 4843.45586
A234: Adult-2,Dependents-2:176,001 - 202,000 | B234: Adult-2,Dependents-2 | C234: 176,001 - 202,000 | D234: 5012.603866
A235: Adult-2,Dependents-2:202,001 - 252,000 | B235: Adult-2,Dependents-2 | C235: 202,001 - 252,000 | D235: 5224.429144
A236: Adult-2,Dependents-2:252,001 - 315,000 | B236: Adult-2,Dependents-2 | C236: 252,001 - 315,000 | D236: 5788.993191
A237: Adult-2,Dependents-2:315,001 - 378,000 | B237: Adult-2,Dependents-2 | C237: 315,001 - 378,000 | D237: 6286.583678
... 66 more rows

Sheet Serviceability Calc (hidden)
A1: Serviceability Cell Calculation
B3: =Serviceability!D51&" (After Tax Rates Applied)" -> Available Income (After Tax Rates Applied) | C3: =Serviceability!L51 -> 59410.40833
B4: Divided by
B5: =Serviceability!D74 -> Total Monthly Commitments | C5: =SUM(Serviceability!L57:L73) -> 47417.52627
A6: Less | B6: =Serviceability!$D$55&" - "&Serviceability!E57 -> RedZed Loan Applied For - Loan 1 | C6: =-Serviceability!L57 -> -25662.52627
A7: Less | B7: =Serviceability!$D$55&" - "&Serviceability!E58 -> RedZed Loan Applied For - Loan 2 | C7: =-Serviceability!L58 -> 0
A8: Less | B8: =Serviceability!$D$55&" - "&Serviceability!E59 -> RedZed Loan Applied For - Loan 3 | C8: =-Serviceability!L59 -> 0
A9: Plus | B9: =Serviceability!$D$55&" - "&Tables!A32 -> RedZed Loan Applied For - Buffered Loan 1 | C9: =Tables!B32 -> 30057.2437
A10: Plus | B10: =Serviceability!$D$55&" - "&Tables!A33 -> RedZed Loan Applied For - Buffered Loan 2 | C10: =Tables!B33 -> 0
A11: Plus | B11: =Serviceability!$D$55&" - "&Tables!A34 -> RedZed Loan Applied For - Buffered Loan 3 | C11: =Tables!B34 -> 0
A12: Less | B12: =Serviceability!$D$62&": "&Serviceability!E62 -> Existing Loans: Loan 1 - Existing Secured | C12: =-Serviceability!L62 -> -21755
A13: Less | B13: =Serviceability!$D$62&": "&Serviceability!E63 -> Existing Loans: Loan 2 - Existing Secured | C13: =-Serviceability!L63 -> 0
A14: Plus | B14: =Serviceability!$D$62&": "&Tables!A38 -> Existing Loans: Buffered Loan 1 | C14: =Tables!C38 -> 26106
A15: Plus | B15: =Serviceability!$D$62&": "&Tables!A39 -> Existing Loans: Buffered Loan 2 | C15: =Tables!C39 -> 0
A16: Plus | B16: =Tables!A43 -> Fees - Loan 1 | C16: =Tables!C43 -> 15
A17: Plus | B17: =Tables!A44 -> Fees - Loan 2 | C17: =Tables!C44 -> 0
A18: Plus | B18: =Tables!A45 -> Fees - Loan 3 | C18: =Tables!C45 -> 0
B20: Total Monthly Commitments (After Repayment Buffering & Fees) | C20: =SUM(C5:C19) -> 56178.2437
B22: =Serviceability!I77&" - Calculated as:" -> Pass - Calculated as: | C22: =ROUNDUP(C3/C20,2) -> 1.06

Sheet Tax Calc (hidden)
A1: Tax Calc
A3: Annual Gross | D3: Gross | E3: Tax | F3: Medicare | G3: Income offset | H3: Net | I3: Net Monthly
A5: Applicant / G'Tor 1 | B5: Salary / Self Employed | D5: =Serviceability!G13 -> 230000 | E5: =IF(D5<Tables!$A$6,0,IF(AND(D5>Tables!$A$6,D5<Tables!$A$7),(D5-Tables!$A$6)*Tables!$C$6,IF(AND(D5>Tables!$A$7,D5<Tables!$A$8),Tables!$D$7+(D5-Tables!$A$7)*Tables!$C$7,IF(AND(D5>Tables!$A$8,D5<Tables!$A$9),Tables!$D$8+(D5-Tables!$A$8)*Tables!$C$8,IF(D5>Tables!$A$9,Tables!$D$9+(D5-Tables!$A$9)*Tables!$C$9))))) -> 69637.55 | F5: =D5*Tables!C$16 -> 4600 | G5: =IFERROR(((D5-VLOOKUP(D5,$A$29:$D$33,1,TRUE))*VLOOKUP(D5,$A$29:$D$33,3,TRUE)+VLOOKUP(D5,$A$29:$D$33,4,TRUE)),0)+IFERROR((IF(D5>66667,66667-45001,(D5-VLOOKUP(D5,$A$41:$D$43,1,TRUE)))*VLOOKUP(D5,$A$41:$D$43,3,TRUE)+VLOOKUP(D5,$A$41:$D$43,4,TRUE)),0) -> 0 | H5: =D5-E5-F5+G5 -> 155762.45 | I5: =H5/12 -> 12980.20417
A6: Applicant / G'Tor 2 | B6: Salary / Self Employed | D6: =Serviceability!G14 -> 230000 | E6: =IF(D6<Tables!$A$6,0,IF(AND(D6>=Tables!$A$6,D6<Tables!$A$7),(D6-Tables!$A$6)*Tables!$C$6,IF(AND(D6>=Tables!$A$7,D6<Tables!$A$8),Tables!$D$7+(D6-Tables!$A$7)*Tables!$C$7,IF(AND(D6>=Tables!$A$8,D6<Tables!$A$9),Tables!$D$8+(D6-Tables!$A$8)*Tables!$C$8,IF(D6>=Tables!$A$9,Tables!$D$9+(D6-Tables!$A$9)*Tables!$C$9))))) -> 69637.55 | F6: =D6*Tables!C$16 -> 4600 | G6: =IFERROR(((D6-VLOOKUP(D6,$A$29:$D$33,1,TRUE))*VLOOKUP(D6,$A$29:$D$33,3,TRUE)+VLOOKUP(D6,$A$29:$D$33,4,TRUE)),0)+IFERROR((IF(D6>66667,66667-45001,(D6-VLOOKUP(D6,$A$41:$D$43,1,TRUE)))*VLOOKUP(D6,$A$41:$D$43,3,TRUE)+VLOOKUP(D6,$A$41:$D$43,4,TRUE)),0) -> 0 | H6: =D6-E6-F6+G6 -> 155762.45 | I6: =H6/12 -> 12980.20417
A7: Applicant / G'Tor 3 | B7: Salary / Self Employed | D7: =Serviceability!G15 -> 0 | E7: =IF(D7<Tables!$A$6,0,IF(AND(D7>=Tables!$A$6,D7<Tables!$A$7),(D7-Tables!$A$6)*Tables!$C$6,IF(AND(D7>=Tables!$A$7,D7<Tables!$A$8),Tables!$D$7+(D7-Tables!$A$7)*Tables!$C$7,IF(AND(D7>=Tables!$A$8,D7<Tables!$A$9),Tables!$D$8+(D7-Tables!$A$8)*Tables!$C$8,IF(D7>=Tables!$A$9,Tables!$D$9+(D7-Tables!$A$9)*Tables!$C$9))))) -> 0 | F7: =D7*Tables!C$16 -> 0 | G7: 0 | H7: 0 | I7: =H7/12 -> 0
A8: Applicant / G'Tor 4 | B8: Salary / Self Employed | D8: =Serviceability!G16 -> 0 | E8: =IF(D8<Tables!$A$6,0,IF(AND(D8>=Tables!$A$6,D8<Tables!$A$7),(D8-Tables!$A$6)*Tables!$C$6,IF(AND(D8>=Tables!$A$7,D8<Tables!$A$8),Tables!$D$7+(D8-Tables!$A$7)*Tables!$C$7,IF(AND(D8>=Tables!$A$8,D8<Tables!$A$9),Tables!$D$8+(D8-Tables!$A$8)*Tables!$C$8,IF(D8>=Tables!$A$9,Tables!$D$9+(D8-Tables!$A$9)*Tables!$C$9))))) -> 0 | F8: =D8*Tables!C$16 -> 0 | G8: 0 | H8: 0 | I8: =H8/12 -> 0
A19: Test lower and middle income offset | D19: Formula | E19: ( income - income lower range ) *offset rate + baseline
A21: income | B21: offset baseline | C21: Income lower range | D21: Income - Lower range | E21: offset reduced % | F21: offset reduced amount | G21: offset amount
A22: 80000 | B22: =VLOOKUP(A22,A29:D33,4,TRUE) -> 0 | C22: =VLOOKUP(A22,A29:D33,1,TRUE) -> 48001 | D22: =A22-C22 -> 31999 | E22: =VLOOKUP(A22,A29:D33,3,TRUE) -> 0 | F22: =+D22*E22 -> 0 | G22: =SUM(B22,F22) -> 0
A26: Lower and Middle income offset
A28: Wages Over | B28: Not to Exceed | C28: Tax Rate
A29: 1 | B29: 37000 | D29: 0
A30: =B29+1 -> 37001 | B30: 48000 | C30: 0 | D30: 0
A31: =B30+1 -> 48001 | B31: 90000 | C31: 0 | D31: 0
A32: =B31+1 -> 90001 | B32: 126000 | C32: 0 | D32: 0
A33: =B32+1 -> 126001 | C33: 0 | D33: 0
A38: Low Income offset
A40: Wages Over | B40: Not to Exceed | C40: Tax Rate
A41: 1 | B41: 37500 | D41: 0 | K41: =I41*52 -> 0
A42: =B41+1 -> 37501 | B42: 45000 | C42: 0 | D42: 0
A43: =B42+1 -> 45001 | B43: 66667 | C43: 0 | D43: 0
A48: Test low income
A50: income | B50: offset baseline | C50: Income lower range | D50: Income - Lower range | E50: offset reduced % | F50: offset reduced amount | G50: offset amount
A51: 80000 | B51: =VLOOKUP(A51,A41:D43,4,TRUE) -> 0 | C51: =VLOOKUP(A51,A41:D43,1,TRUE) -> 45001 | D51: =IF(A51>66667, 66667-45001, A51-C51) -> 21666 | E51: =VLOOKUP(A51,A41:D43,3,TRUE) -> 0 | F51: =+D51*E51 -> 0 | G51: =SUM(B51,F51) -> 0

Sheet User Problems (hidden)
A1: # | B1: Date | C1: Submitted By | D1: Sheet Name (if applicable) | E1: Problem | F1: Initial Review Assessment | G1: Review Result Date | H1: Review With User | I1: Review Result or Action to Take | J1: Sheets Affected | K1: Development Version # | L1: Type | M1: Estimate (hrs) | N1: Actual | O1: Status | P1: Date Unit Tested | Q1: Release Version #
A2: 1 | B2: 2017-04-06 | C2: Bill Slattery | E2: What we are trying to achieve is a stress test of servicing capacity at the higher of; 1. The selected interest rate + 2% or 2. 7% This change should only apply to Residential loans. | K2: ='Version Control'!C2 -> V6.4 Test | L2: Enhancement | O2: Completed | P2: 2017-04-10 | Q2: ='Version Control'!$C$9 -> v6.5
A3: 2 | B3: 2017-04-10 | C3: Trevor Smith | E3: The tax table in the Residential calculator is not the same as in the Consolidated Calculator. Looks like the Residential Calculator was not updated for the 2017/2018 change to the upper limit for the 32.5% rate (ie from $80000 to $87000). | F3: Change the tax table in the Residential Calculator in expectation you want it to match that in the Consolidated Calculator. | G3: 2017-04-10 | H3: Bill Slattery | I3: Change as recommended | K3: ='Version Control'!C3 -> V6.4 Test2 (v6.42) | L3: Bug | O3: Completed | P3: 2017-04-10 | Q3: ='Version Control'!$C$9 -> v6.5
A4: 3 | B4: 2017-04-24 | C4: Bill Slattery | D4: Serviceability Calc | E4: Add Serviceabilty Calculation Sheet as per Consolidated User Problem #131. | F4: Name as "Serviceability Calc" | K4: ='Version Control'!$C$4 -> V6.6 Test (v6.43) | L4: Enhancement | O4: Completed | P4: 2017-05-01 | Q4: ='Version Control'!$C$9 -> v6.5
A5: 4 | B5: 2017-04-24 | C5: Mario Lorenzi | E5: Add two macros: -Ctl/Shift/B to unhide the calculation sheets -Ctl/Shift/H to hide the calculation sheets | K5: ='Version Control'!$C$4 -> V6.6 Test (v6.43) | L5: Enhancement | O5: Completed | P5: 2017-05-01 | Q5: ='Version Control'!$C$9 -> v6.5
A6: 5 | B6: 2017-04-24 | C6: Mario Lorenzi | D6: Tables | E6: Change Company Tax Rate to 28.5% | F6: Set up a a new Company Tax Table on Tables sheet. Change Company Income Calculation (Cell K18) to reference the new Company Tax Table. | K6: ='Version Control'!$C$4 -> V6.6 Test (v6.43) | L6: Data Maintenance | O6: Completed | P6: 2017-05-01 | Q6: ='Version Control'!$C$9 -> v6.5
A7: 6 | B7: 2017-04-24 | C7: Mario Lorenzi | D7: Serviceability | E7: Add Interest Only Term cells for RedZed Loans 1 and 2 on Serviceability sheet. Change the Rate buffering calculation to use the net term (Total Term less Interest Only Term) | K7: ='Version Control'!$C$4 -> V6.6 Test (v6.43) | L7: Enhancement | O7: Completed | P7: 2017-05-01 | Q7: ='Version Control'!$C$9 -> v6.5
A8: 7 | B8: 2017-04-24 | C8: Mario Lorenzi | D8: Serviceability | E8: Add Source of Other Incomes cell for each of the Other Regular Monthly Income lines on the Serviceability sheets. | K8: ='Version Control'!$C$4 -> V6.6 Test (v6.43) | L8: Enhancement | O8: Completed | P8: 2017-05-01 | Q8: ='Version Control'!$C$9 -> v6.5
A9: 8 | B9: 2017-04-24 | C9: Mario Lorenzi | D9: Serviceability | E9: Change Company Income heading to display "Company Income (if applicable)" | K9: ='Version Control'!$C$4 -> V6.6 Test (v6.43) | L9: Enhancement | O9: Completed | P9: 2017-05-01 | Q9: ='Version Control'!$C$9 -> v6.5
A10: 9 | B10: 2017-04-24 | C10: Mario Lorenzi | D10: Serviceability | E10: Swap columns displaying Existing & New v Rental Income/Rental Income | K10: ='Version Control'!$C$4 -> V6.6 Test (v6.43) | L10: Enhancement | O10: Completed | P10: 2017-05-01 | Q10: ='Version Control'!$C$9 -> v6.5
A11: 10 | B11: 2017-04-24 | C11: Mario Lorenzi | D11: Tables | E11: Check Monthly Service Fee calculation - to assume entry of Residential Loans only - calculated at $15 per month | K11: ='Version Control'!$C$4 -> V6.6 Test (v6.43) | L11: Bug | O11: Completed | P11: 2017-05-01 | Q11: ='Version Control'!$C$9 -> v6.5
A12: 11 | B12: 2017-04-24 | C12: Mario Lorenzi | D12: Serviceability | E12: Company Income headings realigned to display above the detail line | K12: ='Version Control'!$C$4 -> V6.6 Test (v6.43) | L12: Enhancement | O12: Completed | P12: 2017-05-01 | Q12: ='Version Control'!$C$9 -> v6.5
A13: 12 | B13: 2017-04-24 | C13: Mario Lorenzi | D13: Serviceability | E13: Company Income section moved to display after Rental Income | K13: ='Version Control'!$C$4 -> V6.6 Test (v6.43) | L13: Enhancement | O13: Completed | P13: 2017-05-01 | Q13: ='Version Control'!$C$9 -> v6.5
A14: 13 | B14: 2017-04-24 | C14: Mario Lorenzi | D14: Serviceability | E14: Change Personal Income descriptors from "Guarantor 1, 2, 3, and 4" to "Applicant / Guarantor 1, 2, 3, and 4" | K14: ='Version Control'!$C$4 -> V6.6 Test (v6.43) | L14: Enhancement | O14: Completed | P14: 2017-05-01 | Q14: ='Version Control'!$C$9 -> v6.5
A15: 14 | B15: 2017-04-24 | C15: Mario Lorenzi | D15: Tables | E15: Tables Sheet - Highlight in yellow those data cells that can be changed to reflect legislation or company policy changes. | K15: ='Version Control'!$C$4 -> V6.6 Test (v6.43) | L15: Enhancement | O15: Completed | P15: 2017-05-01 | Q15: ='Version Control'!$C$9 -> v6.5
A16: 15 | B16: 2017-06-08 | C16: Mario Lorenzi | D16: Tax Calc | E16: Tax Calc Sheet - delete Other Income Cells A10 to I13 | K16: ='Version Control'!$C$5 -> V6.8 Test (v6.44) | L16: Enhancement | O16: Completed | P16: 2017-06-15 | Q16: ='Version Control'!$C$9 -> v6.5
A17: 16 | B17: 2017-06-08 | C17: Mario Lorenzi | D17: Tax Calc | E17: Tax Calc Sheet - delete "Correct Formula For Serviceability - Don’t Think Arm Can Do This" Cells L1 to R25 | K17: ='Version Control'!$C$5 -> V6.8 Test (v6.44) | L17: Enhancement | O17: Completed | P17: 2017-06-15 | Q17: ='Version Control'!$C$9 -> v6.5
A18: 17 | B18: 2017-06-08 | C18: Mario Lorenzi | D18: Serviceability | E18: Fix formatting of Financier Cells for Existing Loans | K18: ='Version Control'!$C$5 -> V6.8 Test (v6.44) | L18: Bug | O18: Completed | P18: 2017-06-15 | Q18: ='Version Control'!$C$9 -> v6.5
A19: 18 | B19: 2017-06-19 | C19: Trevor Smith | D19: User Problems Version Control | E19: Add Sheets for User Problems and Version Control. | K19: ='Version Control'!$C$6 -> V6.9 (v6.45) | L19: Enhancement | O19: Completed | P19: 2017-06-20 | Q19: ='Version Control'!$C$9 -> v6.5
A20: 19 | B20: 2017-06-19 | C20: Angelo Klidomitis | D20: Serviceability | E20: Change Look & Feel as per 4.0 ServiceabilityCalculator.xlsx | K20: ='Version Control'!$C$6 -> V6.9 (v6.45) | L20: Enhancement | O20: Completed | P20: 2017-06-21 | Q20: ='Version Control'!$C$9 -> v6.5
A21: 20 | B21: 2017-05-22 | C21: Mario Lorenzi & Bill Slattery | D21: Serviceability | E21: Increase readability of printed version of the sheet | K21: ='Version Control'!C7 -> V6.10 (v6.46) | L21: Enhancement | O21: Completed | P21: 2017-06-26 | Q21: ='Version Control'!$C$9 -> v6.5
A22: 21 | B22: 2017-06-29 | C22: Mario Lorenzi | D22: Serviceability | E22: 1) Borders missing for Enter Source of Income, Rental Income, Maintenance, & Other Fixed Monthly Repayments. 2) Enter a zero in each dollar entry cell so the user is aware it is available for entry. | K22: ='Version Control'!C8 -> v6.47 Pending | L22: Enhancement & Bug | O22: Completed | P22: 2017-06-29 | Q22: ='Version Control'!$C$9 -> v6.5
A23: 22 | B23: 2018-11-20 | C23: Lorraine Taylor | D23: Servicebility | E23: IF more then three adult in one household please display the mssage | K23: V7.3 | O23: Completed | P23: 2018-11-20 | Q23: V7.3
A24: 23
A25: 24
A26: 25
A27: 26
A28: 27
A29: 28
A30: 29
A31: 30
A32: 31
A33: 32
A34: 33

Sheet Version Control (hidden)
A1: Name | B1: Date | C1: Version # | D1: Development Version File Name | E1: Changes | F1: Released Version | H1: Current Version | I1: =VLOOKUP($J$1,B2:$I$3984,8,FALSE) -> v10.29 240820 | J1: =MAX(B2:B3984) -> 2024-08-20
A2: Trevor Smith | B2: 2017-04-10 | C2: V6.4 Test | D2: K:\IT\Change_Work Requests\Work Request\WR004 - Commercial Calculator\02 Residential Calculator\2017 05 Changes\4. REDZED-Serviceability-170410-V6.4 Test2.xls | E2: User Problem 1 | G2: =IFERROR(VLOOKUP(MONTH(B2),'Day and Months Table'!A:B,2,FALSE)&VLOOKUP(DAY(B2),'Day and Months Table'!A:B,2,FALSE),"N/A") -> 0410 | H2: =RIGHT(YEAR(B2),2)&G2 -> 170410 | I2: =CONCATENATE(C2," ",H2) -> V6.4 Test 170410
A3: Trevor Smith | B3: 2017-04-10 | C3: V6.4 Test2 (v6.42) | D3: K:\IT\Change_Work Requests\Work Request\WR004 - Commercial Calculator\02 Residential Calculator\2017 05 Changes\4. REDZED-Serviceability-170410-V6.4 Test.xls | E3: User Problem 2 | G3: =IFERROR(VLOOKUP(MONTH(B3),'Day and Months Table'!A:B,2,FALSE)&VLOOKUP(DAY(B3),'Day and Months Table'!A:B,2,FALSE),"N/A") -> 0410 | H3: =RIGHT(YEAR(B3),2)&G3 -> 170410 | I3: =CONCATENATE(C3," ",H3) -> V6.4 Test2 (v6.42) 170410
A4: Trevor Smith | B4: 2017-05-01 | C4: V6.6 Test (v6.43) | D4: K:\IT\Change_Work Requests\Work Request\WR004 - Commercial Calculator\02 Residential Calculator\2017 05 Changes\4. REDZED-Serviceability-170410-V6.6 Test.xls | E4: User Problems 3 - 14 inclusive | G4: =IFERROR(VLOOKUP(MONTH(B4),'Day and Months Table'!A:B,2,FALSE)&VLOOKUP(DAY(B4),'Day and Months Table'!A:B,2,FALSE),"N/A") -> 0501 | H4: 170501 | I4: V6.6 Test (v6.43) 170501
A5: Trevor Smith | B5: 2017-05-15 | C5: V6.8 Test (v6.44) | D5: K:\IT\Change_Work Requests\Work Request\WR004 - Commercial Calculator\02 Residential Calculator\2017 05 Changes\4. REDZED-Serviceability-170410-V6.8 Test.xls | E5: User Problems 15 - 17 inclusive | G5: =IFERROR(VLOOKUP(MONTH(B5),'Day and Months Table'!A:B,2,FALSE)&VLOOKUP(DAY(B5),'Day and Months Table'!A:B,2,FALSE),"N/A") -> 0515 | H5: 170515 | I5: V6.8 Test (v6.44) 170515
A6: Trevor Smith | B6: 2017-06-21 | C6: V6.9 (v6.45) | D6: K:\IT\Change_Work Requests\Work Request\WR004 - Commercial Calculator\02 Residential Calculator\2017 05 Changes\4. REDZED-Serviceability-170410-V6.9.xls | E6: User Problem 18 - 19 | F6: Issued to Mario Lorenzi for testing 20 June 2017 | G6: =IFERROR(VLOOKUP(MONTH(B6),'Day and Months Table'!A:B,2,FALSE)&VLOOKUP(DAY(B6),'Day and Months Table'!A:B,2,FALSE),"N/A") -> 0621 | H6: 170621 | I6: V6.9 (v6.45) 170621
A7: Trevor Smith | B7: 2017-06-27 | C7: V6.10 (v6.46) | D7: K:\IT\Change_Work Requests\Work Request\WR004 - Commercial Calculator\02 Residential Calculator\2017 05 Changes\4. REDZED-Serviceability-170410-V6.10.xls A changed versioning system for both this Residential Calculator and the Commercial Calculator was agreed with Tina Georgiadis 26 June 2015 (after receiving feedback from Angel Klidomitis). The last version of the Residential Calculator was named "4. REDZED-Serviceability-170410-V6.4.xls". The naming convention is being changed to "REDZED-Serviceability Type (ie Residential or Commercial) Version Number.xls". Each release will have a date added as a suffix in the format yymmdd. Because the upcoming release does not contain major ammendments it will be named "REDZED-Serviceability Residential v6.5 yymmdd.xls". This being the case, the naming of the development files should have been as per the bracketed values in the Version # cells (eg 4. REDZED-Serviceability-170410-V6.4 Test.xls should have been 4. REDZED-Serviceability-170410-V6.41.xls) To move to the new numbering system this version was copied and renamed and saved to the new development and release folder structure 26 June 2017. The new location and file name is K:\Credit\Servicing Calculator - Residential\Development - Residential\REDZED-Serviceability Residential V0.646.xlsm. The released version number for this series of amendments will be v6.5 with a date added in the format yymmdd. | E7: A renamed version + User Problem 20 | G7: =IFERROR(VLOOKUP(MONTH(B7),'Day and Months Table'!A:B,2,FALSE)&VLOOKUP(DAY(B7),'Day and Months Table'!A:B,2,FALSE),"N/A") -> 0627 | H7: 170627 | I7: V6.10 (v6.46) 170627
A8: Trevor Smith | B8: 2017-06-29 | C8: v6.47 Pending | D8: K:\Credit\Servicing Calculator - Residential\Development - Residential\REDZED-Serviceability Residential V0.647.xlsm | E8: User Problem 21 | G8: =IFERROR(VLOOKUP(MONTH(B8),'Day and Months Table'!A:B,2,FALSE)&VLOOKUP(DAY(B8),'Day and Months Table'!A:B,2,FALSE),"N/A") -> 0629 | H8: 170629 | I8: v6.47 Pending 170629
A9: Trevor Smith | B9: 2017-06-30 | C9: v6.5 | F9: K:\Credit\Servicing Calculator - Residential\Current Released Version - Residential\REDZED-Serviceability Residential V6.5.xlsm | G9: =IFERROR(VLOOKUP(MONTH(B9),'Day and Months Table'!A:B,2,FALSE)&VLOOKUP(DAY(B9),'Day and Months Table'!A:B,2,FALSE),"N/A") -> 0630 | H9: 170630 | I9: v6.5 170630
A10: Mayank Badhen | B10: 2018-06-25 | C10: V7.1A | D10: Updated the living expense | G10: =IFERROR(VLOOKUP(MONTH(B10),'Day and Months Table'!A:B,2,FALSE)&VLOOKUP(DAY(B10),'Day and Months Table'!A:B,2,FALSE),"N/A") -> 0625 | H10: 180625 | I10: V7.1A 180625
A11: Mayank Badhen | B11: 2018-07-25 | C11: V7.2 | D11: updated living expense for Company selecting household is mandatory updated the tax scale compnay income is always attached to household 1 | G11: =IFERROR(VLOOKUP(MONTH(B11),'Day and Months Table'!A:B,2,FALSE)&VLOOKUP(DAY(B11),'Day and Months Table'!A:B,2,FALSE),"N/A") -> 0725 | H11: 180725 | I11: V7.2 180725
A12: Mayank Badhen | B12: 2018-12-11 | C12: V7.2.1 | D12: IF more then three adult in one household please display the mssage | G12: =IFERROR(VLOOKUP(MONTH(B12),'Day and Months Table'!A:B,2,FALSE)&VLOOKUP(DAY(B12),'Day and Months Table'!A:B,2,FALSE),"N/A") -> 1211 | H12: 181211 | I12: V7.2.1 181211
A13: Mayank Badhen | B13: 2019-06-26 | C13: V7.3 | D13: credit card obligations | G13: =IFERROR(VLOOKUP(MONTH(B13),'Day and Months Table'!A:B,2,FALSE)&VLOOKUP(DAY(B13),'Day and Months Table'!A:B,2,FALSE),"N/A") -> 0626 | H13: 190626 | I13: V7.3 190626
A14: Mayank Badhen | B14: 2019-12-02 | C14: V7.4 | D14: IO term fixed | G14: =IFERROR(VLOOKUP(MONTH(B14),'Day and Months Table'!A:B,2,FALSE)&VLOOKUP(DAY(B14),'Day and Months Table'!A:B,2,FALSE),"N/A") -> 1202 | H14: 191202 | I14: V7.4 191202
G15: =IFERROR(VLOOKUP(MONTH(B15),'Day and Months Table'!A:B,2,FALSE)&VLOOKUP(DAY(B15),'Day and Months Table'!A:B,2,FALSE),"N/A") -> N/A | H15: 00N/A | I15: 00N/A
G16: =IFERROR(VLOOKUP(MONTH(B16),'Day and Months Table'!A:B,2,FALSE)&VLOOKUP(DAY(B16),'Day and Months Table'!A:B,2,FALSE),"N/A") -> N/A | H16: 00N/A | I16: 00N/A
G17: =IFERROR(VLOOKUP(MONTH(B17),'Day and Months Table'!A:B,2,FALSE)&VLOOKUP(DAY(B17),'Day and Months Table'!A:B,2,FALSE),"N/A") -> N/A | H17: 00N/A | I17: 00N/A
A18: John Jiang | B18: 2020-07-30 | C18: V10.0 | D18: 1. Residential calculator a. Introduction of a traffic light Pass, Refer to RZ or Fail notification. Pass >1.10, Refer >1.05 – 1.10, Fail below 1.05. The introduction of the Refer category is designed to encourage brokers to Refer deals where we don’t quite meet servicing requirements, but in discussion with RZ we may jointly find a way forward. Potentially these deals may be currently being sent to other lenders who have lower servicing ratio benchmarks). b. Creating a blank template. c. Removal of the tax calculation for company income to fall in line with the policy which states that we assess on NPBT. Other general changes including ensuring; 1. Living expenses were consistent across all selections (there were some errors & inconsistencies) 2. Tax scales were checked and amended for consistency. | G18: =IFERROR(VLOOKUP(MONTH(B18),'Day and Months Table'!A:B,2,FALSE)&VLOOKUP(DAY(B18),'Day and Months Table'!A:B,2,FALSE),"N/A") -> 0730 | H18: 200730 | I18: V10.0 200730
A19: John Jiang | B19: 2020-08-13 | C19: V10.0 Residential | D19: Changed footer | G19: =IFERROR(VLOOKUP(MONTH(B19),'Day and Months Table'!A:B,2,FALSE)&VLOOKUP(DAY(B19),'Day and Months Table'!A:B,2,FALSE),"N/A") -> 0813 | H19: 200813 | I19: V10.0 Residential 200813
A20: John Jiang | B20: 2020-11-16 | C20: V10.1 | D20: changed tax bracket to new 2020 tax regulation | G20: =IFERROR(VLOOKUP(MONTH(B20),'Day and Months Table'!A:B,2,FALSE)&VLOOKUP(DAY(B20),'Day and Months Table'!A:B,2,FALSE),"N/A") -> 1116 | H20: 201116 | I20: V10.1 201116
A21: John Jiang | B21: 2020-12-17 | C21: V10.11 | D21: change interest floor rate from 7% to 6% | G21: =IFERROR(VLOOKUP(MONTH(B21),'Day and Months Table'!A:B,2,FALSE)&VLOOKUP(DAY(B21),'Day and Months Table'!A:B,2,FALSE),"N/A") -> 1217 | H21: 201217 | I21: V10.11 201217
A22: John Jiang | B22: 2021-01-15 | C22: V10.12 | D22: Update HEM table according to Sept 2020 quarter data from HEM | G22: =IFERROR(VLOOKUP(MONTH(B22),'Day and Months Table'!A:B,2,FALSE)&VLOOKUP(DAY(B22),'Day and Months Table'!A:B,2,FALSE),"N/A") -> 0115 | H22: 210115 | I22: V10.12 210115
A23: John Jiang | B23: 2021-09-15 | C23: V10.13 | D23: Update HEM table according to 2021 June quarter HEM review data | G23: =IFERROR(VLOOKUP(MONTH(B23),'Day and Months Table'!A:B,2,FALSE)&VLOOKUP(DAY(B23),'Day and Months Table'!A:B,2,FALSE),"N/A") -> 0915 | H23: =RIGHT(YEAR(B23),2)&G23 -> 210915 | I23: =CONCATENATE(C23," ",H23) -> V10.13 210915
A24: John Jiang | B24: 2021-10-27 | C24: V10.14 | D24: Add a footnote in resi calculator only. | E24: For Company Borrowers DSR must be >1.10 | G24: =IFERROR(VLOOKUP(MONTH(B24),'Day and Months Table'!A:B,2,FALSE)&VLOOKUP(DAY(B24),'Day and Months Table'!A:B,2,FALSE),"N/A") -> 1027 | H24: =RIGHT(YEAR(B24),2)&G24 -> 211027 | I24: =CONCATENATE(C24," ",H24) -> V10.14 211027
A25: Shun | B25: 2022-04-06 | C25: V10.15 | D25: Add DTI Calculation | G25: =IFERROR(VLOOKUP(MONTH(B25),'Day and Months Table'!A:B,2,FALSE)&VLOOKUP(DAY(B25),'Day and Months Table'!A:B,2,FALSE),"N/A") -> 0406 | H25: 220406 | I25: V10.15 220406
A26: Shun | B26: 2022-06-16 | C26: V10.16 | D26: Update Buffer and Floor Rates && Add the Total Credit Card Limit values to the Total Debt value && Update HEM Rates Q1 2022 | G26: =IFERROR(VLOOKUP(MONTH(B26),'Day and Months Table'!A:B,2,FALSE)&VLOOKUP(DAY(B26),'Day and Months Table'!A:B,2,FALSE),"N/A") -> 0616 | H26: 220616 | I26: V10.16 220616
A27: Shun | B27: 2022-07-15 | C27: v10.17 | D27: Update tax rate | G27: =IFERROR(VLOOKUP(MONTH(B27),'Day and Months Table'!A:B,2,FALSE)&VLOOKUP(DAY(B27),'Day and Months Table'!A:B,2,FALSE),"N/A") -> 0715 | H27: 220715 | I27: v10.17 220715
A28: Shun | B28: 2022-08-22 | C28: v10.18 | D28: Update Hem Rate | G28: =IFERROR(VLOOKUP(MONTH(B28),'Day and Months Table'!A:B,2,FALSE)&VLOOKUP(DAY(B28),'Day and Months Table'!A:B,2,FALSE),"N/A") -> 0822 | H28: 220822 | I28: v10.18 220822
A29: Shun | B29: 2022-11-29 | C29: v10.19 | D29: Update Hem Rate | G29: =IFERROR(VLOOKUP(MONTH(B29),'Day and Months Table'!A:B,2,FALSE)&VLOOKUP(DAY(B29),'Day and Months Table'!A:B,2,FALSE),"N/A") -> 1129 | H29: 221129 | I29: v10.19 221129
A30: Shun | B30: 2023-03-06 | C30: v10.20 | D30: Update Hem Rate | G30: =IFERROR(VLOOKUP(MONTH(B30),'Day and Months Table'!A:B,2,FALSE)&VLOOKUP(DAY(B30),'Day and Months Table'!A:B,2,FALSE),"N/A") -> 0306 | H30: 230306 | I30: v10.20 230306
A31: Shun | B31: 2023-05-23 | C31: v10.21 | D31: Update Hem Rate | G31: =IFERROR(VLOOKUP(MONTH(B31),'Day and Months Table'!A:B,2,FALSE)&VLOOKUP(DAY(B31),'Day and Months Table'!A:B,2,FALSE),"N/A") -> 0523 | H31: 230523 | I31: v10.21 230523
A32: Shun | B32: 2023-08-03 | C32: v10.22 | D32: Split 3 Loans | G32: =IFERROR(VLOOKUP(MONTH(B32),'Day and Months Table'!A:B,2,FALSE)&VLOOKUP(DAY(B32),'Day and Months Table'!A:B,2,FALSE),"N/A") -> 0803 | H32: 230803 | I32: v10.22 230803
A33: Shun | B33: 2023-08-15 | C33: v10.23 | D33: Update APR Buffer | G33: =IFERROR(VLOOKUP(MONTH(B33),'Day and Months Table'!A:B,2,FALSE)&VLOOKUP(DAY(B33),'Day and Months Table'!A:B,2,FALSE),"N/A") -> 0815 | H33: 230815 | I33: v10.23 230815
A34: Shun | B34: 2023-08-23 | C34: v10.24 | D34: Update HEM Rate | G34: =IFERROR(VLOOKUP(MONTH(B34),'Day and Months Table'!A:B,2,FALSE)&VLOOKUP(DAY(B34),'Day and Months Table'!A:B,2,FALSE),"N/A") -> 0823 | H34: 230823 | I34: v10.24 230823
A35: Shun | B35: 2023-11-20 | C35: v10.25 | D35: Update HEM Rate | G35: =IFERROR(VLOOKUP(MONTH(B35),'Day and Months Table'!A:B,2,FALSE)&VLOOKUP(DAY(B35),'Day and Months Table'!A:B,2,FALSE),"N/A") -> 1120 | H35: =RIGHT(YEAR(B35),2)&G35 -> 231120 | I35: =CONCATENATE(C35," ",H35) -> v10.25 231120
A36: Shun | B36: 2024-02-07 | C36: v10.26 | D36: Update Company Tax Rate | G36: =IFERROR(VLOOKUP(MONTH(B36),'Day and Months Table'!A:B,2,FALSE)&VLOOKUP(DAY(B36),'Day and Months Table'!A:B,2,FALSE),"N/A") -> 0207 | H36: 240207 | I36: v10.26 240207
A37: Shun | B37: 2024-03-15 | C37: v10.27 | D37: Update HEM Rate | G37: =IFERROR(VLOOKUP(MONTH(B37),'Day and Months Table'!A:B,2,FALSE)&VLOOKUP(DAY(B37),'Day and Months Table'!A:B,2,FALSE),"N/A") -> 0315 | H37: 240315 | I37: v10.27 240315
A38: Shun | B38: 2024-06-13 | C38: v10.28 | D38: Update HEM Rate, Income Rate | G38: =IFERROR(VLOOKUP(MONTH(B38),'Day and Months Table'!A:B,2,FALSE)&VLOOKUP(DAY(B38),'Day and Months Table'!A:B,2,FALSE),"N/A") -> 0613 | H38: =RIGHT(YEAR(B38),2)&G38 -> 240613 | I38: =CONCATENATE(C38," ",H38) -> v10.28 240613
A39: Shun | B39: 2024-08-20 | C39: v10.29 | D39: Update the rental income type | G39: =IFERROR(VLOOKUP(MONTH(B39),'Day and Months Table'!A:B,2,FALSE)&VLOOKUP(DAY(B39),'Day and Months Table'!A:B,2,FALSE),"N/A") -> 0820 | H39: =RIGHT(YEAR(B39),2)&G39 -> 240820 | I39: =CONCATENATE(C39," ",H39) -> v10.29 240820

Sheet Day and Months Table (hidden)
A1: 1 | B1: 01
A2: 2 | B2: 02
A3: 3 | B3: 03
A4: 4 | B4: 04
A5: 5 | B5: 05
A6: 6 | B6: 06
A7: 7 | B7: 07
A8: 8 | B8: 08
A9: 9 | B9: 09
A10: 10 | B10: 10
A11: 11 | B11: 11
A12: 12 | B12: 12
A13: 13 | B13: 13
A14: 14 | B14: 14
A15: 15 | B15: 15
A16: 16 | B16: 16
A17: 17 | B17: 17
A18: 18 | B18: 18
A19: 19 | B19: 19
A20: 20 | B20: 20
A21: 21 | B21: 21
A22: 22 | B22: 22
A23: 23 | B23: 23
A24: 24 | B24: 24
A25: 25 | B25: 25
A26: 26 | B26: 26
A27: 27 | B27: 27
A28: 28 | B28: 28
A29: 29 | B29: 29
A30: 30 | B30: 30
A31: 31 | B31: 31
